bitfinex/quotes_BTCUSD_20220303
["timestamp","ask_amount","ask_price","bid_price","bid_amount"]
[1646338938984,0.118669,42159.0,42151.0,0.001]
[1646338939386,0.118669,42159.0,42154.0,8.569e-05]
[1646338939669,0.118669,42159.0,42157.0,0.1113584]
[1646338940470,0.118669,42159.0,42154.0,0.20977136]
[1646338941071,0.118669,42159.0,42154.0,0.20985705]
[1646338941470,0.118669,42159.0,42154.0,0.21285705]
[1646338941672,0.118669,42159.0,42158.0,0.10255293]
[1646338942073,0.118669,42159.0,42158.0,0.56055745]
[1646338942271,0.118669,42159.0,42158.0,0.10255293]
[1646338942472,0.05933145,42160.0,42158.0,0.10255293]
[1646338942671,0.05933145,42160.0,42158.0,0.56055745]
[1646338942871,0.05933145,42160.0,42158.0,0.10255293]
[1646338943075,0.03405,42165.0,42159.0,1.26355945]
[1646338943275,0.03405,42165.0,42163.0,0.04652983]
[1646338943486,0.03405,42165.0,42164.0,0.04652983]
[1646338944287,0.03405,42165.0,42164.0,2.27206182]
[1646338944489,0.03405,42165.0,42164.0,0.03133525]
[1646338944687,0.03405,42165.0,42160.0,0.025]
[1646338944688,0.03405,42165.0,42160.0,0.45800452]
[1646338944886,0.03405,42165.0,42154.0,0.37008945]
[1646338944887,0.05932022,42163.0,42155.0,0.46984452]
[1646338945088,0.05932022,42163.0,42162.0,0.00010264]
[1646338945685,0.05932022,42163.0,42162.0,0.00030792]
[1646338946086,0.05932022,42163.0,42162.0,0.00010264]
[1646338946289,0.05932022,42163.0,42158.0,0.10248753]
[1646338946789,0.11863622,42163.0,42158.0,0.10259787]
[1646338946987,0.03405,42165.0,42159.0,0.06772391]
[1646338947244,0.03405,42165.0,42159.0,0.09272391]
[1646338947645,0.03405,42165.0,42159.0,0.04487535]
[1646338948344,0.03405,42165.0,42159.0,0.01987535]
[1646338948549,0.03405,42165.0,42160.0,0.00011033]
[1646338949246,0.118632,42166.0,42160.0,0.00033099]
[1646338949446,0.118632,42166.0,42160.0,0.00022066]
[1646338949645,0.118632,42166.0,42160.0,0.00011033]
[1646338949847,0.118632,42166.0,42158.0,0.01552192]
[1646338950249,0.059315,42164.0,42161.0,0.00012204]
[1646338950447,0.059315,42164.0,42162.0,0.13144168]
[1646338950648,0.059315,42164.0,42163.0,0.05558362]
[1646338950890,0.118618,42172.0,42163.0,0.47842443]
[1646338951090,0.118618,42172.0,42163.0,0.08058362]
[1646338951387,0.059306,42169.0,42167.0,0.16662992]
[1646338951590,0.01184,42180.0,42167.0,0.16662992]
[1646338951787,0.0593042,42176.0,42167.0,0.16662992]
[1646338952187,0.0593042,42176.0,42169.0,0.09934957]
[1646338952587,0.0593042,42176.0,42172.0,0.15807861]
[1646338952786,0.05898826,42176.0,42172.0,0.15807861]
[1646338952986,0.05898826,42176.0,42169.0,0.09934957]
[1646338953188,0.059301,42174.0,42169.0,0.09934957]
[1646338953586,0.059301,42174.0,42169.0,0.00609324]
[1646338954288,0.059301,42174.0,42169.0,0.00627972]
[1646338954738,0.059301,42174.0,42169.0,0.00018648]
[1646338954938,0.059301,42174.0,42167.0,0.19169511]
[1646338955140,0.059301,42174.0,42165.0,0.10238967]
[1646338955340,0.059301,42174.0,42169.0,9.324e-05]
[1646338955938,0.059301,42174.0,42169.0,0.00027972]
[1646338956139,0.059301,42174.0,42171.0,0.16331404]
[1646338956538,0.059301,42174.0,42172.0,0.12667488]
[1646338956741,0.118603,42177.0,42172.0,0.12667488]
[1646338956940,0.059298,42178.0,42172.0,0.12667488]
[1646338957740,0.059298,42178.0,42172.0,0.13067488]
[1646338958790,0.059298,42178.0,42172.0,0.12667488]
[1646338959189,0.059298,42178.0,42173.0,7.731e-05]
[1646338959792,0.059298,42178.0,42173.0,0.00023193]
[1646338959992,0.059298,42178.0,42173.0,0.06414258]
[1646338960193,0.059298,42178.0,42173.0,0.06406527]
[1646338960494,0.059298,42178.0,42173.0,0.06391065]
[1646338960892,0.059298,42178.0,42173.0,0.00010813]
[1646338961503,0.059298,42178.0,42173.0,0.00032439]
[1646338961691,0.059298,42178.0,42173.0,0.00632439]
[1646338961891,0.059298,42178.0,42173.0,0.00610813]
[1646338962135,0.059298,42178.0,42173.0,0.006]
[1646338962536,0.059298,42178.0,42173.0,0.00610813]
[1646338962936,0.059298,42178.0,42173.0,0.00021626]
[1646338963136,0.059298,42178.0,42173.0,0.00032439]
[1646338963137,0.11859869,42178.0,42173.0,0.00032439]
[1646338963536,0.11859869,42178.0,42173.0,0.00021626]
[1646338963739,0.11859869,42178.0,42168.0,0.006]
[1646338964139,0.11859869,42178.0,42173.0,6.818e-05]
[1646338964539,0.11859869,42178.0,42173.0,0.00013636]
[1646338964742,0.059298,42178.0,42173.0,0.00020454]
[1646338965142,0.059298,42178.0,42177.0,0.0332626]
[1646338965340,0.4494,42179.0,42178.0,0.19208337]
[1646338965542,0.4494,42179.0,42178.0,0.27160018]
[1646338965738,0.4494,42179.0,42178.0,0.27157647]
[1646338965988,0.4494,42179.0,42178.0,0.28533441]
[1646338966187,0.4494,42179.0,42178.0,0.44506164]
[1646338966389,0.4494,42179.0,42178.0,0.39887916]
[1646338966587,0.4494,42179.0,42178.0,0.44475942]
[1646338966797,0.22381779,42189.0,42179.0,0.97368]
[1646338966798,0.16452779,42189.0,42179.0,0.97368]
[1646338966992,0.4151,42197.0,42183.0,0.04586612]
[1646338966993,0.4494,42191.0,42183.0,0.04586612]
[1646338967189,0.4494,42191.0,42184.0,0.0616646]
[1646338967390,0.4151,42197.0,42186.0,0.01429254]
[1646338967590,0.4151,42197.0,42191.0,0.17305025]
[1646338967789,0.4151,42197.0,42187.0,0.05969953]
[1646338967790,0.4151,42197.0,42192.0,0.0475]
[1646338967990,0.4151,42197.0,42191.0,0.0475]
[1646338968690,0.4151,42197.0,42191.0,0.20895107]
[1646338969490,0.474371,42197.0,42191.0,0.20895107]
[1646338969736,0.474371,42197.0,42191.0,0.21295107]
[1646338970437,0.474371,42197.0,42191.0,0.67315407]
[1646338970637,0.4151,42197.0,42191.0,0.67315407]
[1646338970836,0.4151,42197.0,42191.0,0.66915407]
[1646338971236,0.4151,42197.0,42194.0,0.21651947]
[1646338971436,0.4151,42197.0,42195.0,0.507703]
[1646338971636,0.4151,42197.0,42196.0,0.460203]
[1646338972036,0.4151,42197.0,42195.0,0.0475]
[1646338973386,0.47436,42197.0,42195.0,0.0475]
[1646338973590,0.47436,42197.0,42195.0,0.0535]
[1646338973787,0.05926,42197.0,42196.0,0.460203]
[1646338974088,0.00043449,42200.0,42195.0,0.006]
[1646338974287,0.00043449,42200.0,42196.0,0.0475]
[1646338974687,0.00014483,42200.0,42196.0,0.0475]
[1646338974888,0.2361,42201.0,42196.0,0.0475]
[1646338975288,0.295356,42201.0,42196.0,0.0475]
[1646338975487,0.00014725,42200.0,42196.0,0.0475]
[1646338975689,0.00044175,42200.0,42196.0,0.0475]
[1646338976290,0.00014725,42200.0,42191.0,0.005]
[1646338976490,0.118559,42198.0,42191.0,0.005]
[1646338976888,0.118559,42198.0,42194.0,0.19623538]
[1646338977338,0.118559,42198.0,42195.0,0.0475]
[1646338977537,0.00013667,42200.0,42195.0,0.0475]
[1646338977538,0.059268,42196.0,42195.0,0.0475]
[1646338977737,0.059268,42196.0,42195.0,0.07153299]
[1646338979744,0.059268,42196.0,42195.0,0.006]
[1646338979938,0.059268,42196.0,42183.0,0.0475]
[1646338980139,0.519471,42196.0,42184.0,0.71108]
[1646338980737,0.05927903,42193.0,42184.0,0.71108]
[1646338980991,0.059286,42190.0,42184.0,0.71108]
[1646338981191,0.460203,42189.0,42184.0,0.71108]
[1646338981992,0.05928676,42188.0,42184.0,0.71108]
[1646338983094,0.05928676,42188.0,42187.0,0.17131968]
[1646338983293,0.059286,42190.0,42186.0,0.10376073]
[1646338983491,0.059286,42190.0,42184.0,0.71135182]
[1646338983692,0.059286,42190.0,42187.0,0.004]
[1646338984096,0.059286,42190.0,42184.0,0.71121591]
[1646338984097,0.35,42189.0,42184.0,0.71121591]
[1646338984294,0.519489,42190.0,42184.0,0.71108]
[1646338984636,0.17786164,42190.0,42184.0,0.71108]
[1646338984839,0.17786164,42190.0,42185.0,0.00013591]
[1646338985236,0.17786164,42190.0,42185.0,0.00027182]
[1646338985437,0.05928654,42189.0,42185.0,0.00040773]
[1646338985638,0.05928654,42189.0,42185.0,0.00540773]
[1646338985836,0.05928654,42189.0,42185.0,0.16841807]
[1646338986036,0.05928654,42189.0,42185.0,0.16814625]
[1646338986237,0.05928654,42189.0,42185.0,0.00513591]
[1646338986836,0.05928654,42189.0,42185.0,0.00540773]
[1646338987038,0.05928654,42189.0,42185.0,0.00040773]
[1646338987238,0.05928654,42189.0,42185.0,0.00027182]
[1646338987642,0.05928654,42189.0,42185.0,0.005]
[1646338988042,0.05928654,42189.0,42185.0,0.00513557]
[1646338988484,0.05928654,42189.0,42185.0,0.00527114]
[1646338988683,0.05928654,42189.0,42185.0,0.00540671]
[1646338988886,0.05928654,42189.0,42185.0,0.00040671]
[1646338989087,0.05928654,42189.0,42185.0,0.00027114]
[1646338989288,0.05928654,42189.0,42184.0,0.71108]
[1646338989485,0.05928654,42189.0,42185.0,0.00013557]
[1646338990087,0.05928654,42189.0,42185.0,0.00027114]
[1646338990291,0.05928654,42189.0,42185.0,0.12570096]
[1646338990493,0.05928654,42189.0,42185.0,0.12556539]
[1646338990690,0.05928654,42189.0,42185.0,0.12542982]
[1646338990891,0.05928654,42189.0,42185.0,0.12529425]
[1646338991089,0.05928654,42189.0,42185.0,0.12538474]
[1646338991692,0.05928654,42189.0,42186.0,0.17331108]
[1646338991891,0.05928654,42189.0,42185.0,0.13056572]
[1646338992182,0.05928654,42189.0,42185.0,0.13047523]
[1646338992383,0.05928654,42189.0,42185.0,0.13029425]
[1646338992785,0.05928654,42189.0,42185.0,0.13038474]
[1646338992990,0.05928654,42189.0,42185.0,0.12538474]
[1646338993185,0.05928654,42189.0,42185.0,0.12556572]
[1646338993785,0.05928654,42189.0,42185.0,0.13138474]
[1646338993985,0.05928654,42189.0,42185.0,0.13129425]
[1646338994286,0.05928654,42189.0,42185.0,0.13137473]
[1646338994687,0.05928654,42189.0,42185.0,0.13153569]
[1646338994885,0.05928654,42189.0,42185.0,0.12553569]
[1646338995089,0.05928654,42189.0,42185.0,0.12545521]
[1646338995287,0.05928654,42189.0,42185.0,0.12537473]
[1646338995490,0.05928654,42189.0,42185.0,0.12529425]
[1646338995690,0.05928654,42189.0,42185.0,0.12937473]
[1646338996095,0.05928654,42189.0,42185.0,0.12945521]
[1646338996294,0.05928654,42189.0,42185.0,0.12953569]
[1646338996695,0.05928654,42189.0,42185.0,0.12945521]
[1646338996894,0.05928654,42189.0,42185.0,0.12537473]
[1646338997094,0.05928654,42189.0,42185.0,0.12529425]
[1646338997298,0.05928654,42189.0,42185.0,0.12537473]
[1646338997495,0.05928654,42189.0,42185.0,8.048e-05]
[1646338997696,0.05928654,42189.0,42185.0,0.00016096]
[1646338997997,0.05928654,42189.0,42185.0,0.00024144]
[1646338998195,0.05928654,42189.0,42185.0,0.00016096]
[1646338998495,0.05928654,42189.0,42184.0,0.71108]
[1646338998694,0.05928654,42189.0,42185.0,0.00012989]
[1646338999296,0.05928654,42189.0,42185.0,0.00025978]
[1646338999496,0.05928654,42189.0,42185.0,0.00038967]
[1646338999772,0.05928654,42189.0,42185.0,0.00025978]
[1646339000067,0.05928654,42189.0,42184.0,0.71108]
[1646339000571,0.05928654,42189.0,42185.0,0.00012989]
[1646339001067,0.05865486,42189.0,42185.0,0.00038967]
[1646339001466,0.05865486,42189.0,42185.0,0.00012989]
[1646339001671,0.05865486,42189.0,42185.0,0.006]
[1646339002067,0.05865486,42189.0,42185.0,0.00613558]
[1646339002470,0.05865486,42189.0,42185.0,0.00627116]
[1646339002770,0.05865486,42189.0,42185.0,0.00640674]
[1646339003071,0.05865486,42189.0,42185.0,0.00027116]
[1646339003269,0.05865486,42189.0,42185.0,0.00013558]
[1646339003493,0.05865486,42189.0,42184.0,0.71108]
[1646339003692,0.05865486,42189.0,42185.0,0.00013558]
[1646339004092,0.05865486,42189.0,42185.0,0.00027116]
[1646339004295,0.05865486,42189.0,42185.0,0.00040674]
[1646339004693,0.05865486,42189.0,42185.0,0.00013558]
[1646339004893,0.05865486,42189.0,42184.0,0.71108]
[1646339005694,0.05865486,42189.0,42184.0,0.71608]
[1646339006296,0.059286,42190.0,42185.0,0.460203]
[1646339006495,0.059286,42190.0,42189.0,0.17596458]
[1646339006695,0.059286,42190.0,42189.0,0.22346458]
[1646339007742,0.059286,42190.0,42189.0,0.22746458]
[1646339008347,0.059286,42190.0,42189.0,0.37658927]
[1646339008546,0.4494,42194.0,42189.0,0.77409325]
[1646339008547,0.059267,42194.0,42189.0,0.77409325]
[1646339008744,0.118536,42197.0,42194.0,0.21308143]
[1646339008945,0.001,42202.0,42196.0,0.02403043]
[1646339009144,0.001,42202.0,42195.0,0.4584754]
[1646339009345,0.00025018,42200.0,42199.0,0.09325313]
[1646339009546,0.00037527,42200.0,42199.0,0.09325313]
[1646339009746,0.00025018,42200.0,42199.0,0.09325313]
[1646339009945,0.00025018,42200.0,42197.0,0.0475]
[1646339010145,0.29536,42201.0,42197.0,0.0475]
[1646339010643,0.29536,42201.0,42196.0,0.71097]
[1646339011097,0.29536,42201.0,42196.0,0.87735135]
[1646339011296,0.3549077,42201.0,42196.0,0.73597]
[1646339011501,0.05926843,42200.0,42196.0,0.73597]
[1646339011696,0.05926843,42200.0,42196.0,0.74097]
[1646339012396,0.05926843,42200.0,42196.0,0.92623881]
[1646339012795,0.05938492,42200.0,42196.0,0.92623881]
[1646339012995,0.05950141,42200.0,42196.0,0.92123881]
[1646339013199,0.0596179,42200.0,42196.0,0.73597]
[1646339013401,0.05950141,42200.0,42196.0,0.73597]
[1646339013598,0.05926843,42200.0,42196.0,0.73597]
[1646339013797,0.05926843,42200.0,42196.0,0.74197]
[1646339014399,0.05938034,42200.0,42196.0,0.74197]
[1646339014640,0.05960416,42200.0,42196.0,0.74197]
[1646339015045,0.05949225,42200.0,42196.0,0.73597]
[1646339015241,0.05926843,42200.0,42196.0,0.73597]
[1646339016144,0.05940363,42200.0,42196.0,0.73597]
[1646339016342,0.05953883,42200.0,42196.0,0.73597]
[1646339016543,0.05967403,42200.0,42196.0,0.73597]
[1646339016845,0.05953883,42200.0,42196.0,0.73597]
[1646339017046,0.05926843,42200.0,42196.0,0.73597]
[1646339017643,0.05941922,42200.0,42196.0,0.73597]
[1646339017845,0.05957001,42200.0,42196.0,0.73897]
[1646339018044,0.00045237,42200.0,42196.0,0.73897]
[1646339018615,0.00015079,42200.0,42196.0,0.73897]
[1646339018813,0.354628,42201.0,42196.0,0.73897]
[1646339019212,0.354628,42201.0,42196.0,0.73597]
[1646339019416,0.05927053,42199.0,42196.0,0.73597]
[1646339020211,0.17782653,42199.0,42196.0,0.71097]
[1646339022015,0.05927053,42199.0,42196.0,0.71097]
[1646339022955,0.05927053,42199.0,42196.0,0.71040559]
[1646339025754,0.05927053,42199.0,42196.0,0.71340559]
[1646339026198,0.05969526,42200.0,42196.0,0.71340559]
[1646339026600,0.05955584,42200.0,42196.0,0.71340559]
[1646339026800,0.05941642,42200.0,42196.0,0.71340559]
[1646339027001,0.059277,42200.0,42196.0,0.71040559]
[1646339027403,0.05927095,42199.0,42196.0,0.71040559]
[1646339028401,0.05927095,42199.0,42197.0,0.20556266]
[1646339029648,0.05950322,42200.0,42196.0,0.71040559]
[1646339029649,0.05961633,42200.0,42196.0,0.71040559]
[1646339029844,0.05950322,42200.0,42197.0,0.002]
[1646339030044,0.059277,42200.0,42197.0,0.002]
[1646339030444,0.059277,42200.0,42197.0,0.07401579]
[1646339030650,0.29536,42201.0,42197.0,0.07401579]
[1646339030846,0.29551415,42201.0,42198.0,0.0475]
[1646339031046,0.2956683,42201.0,42198.0,0.0475]
[1646339031249,0.2956683,42201.0,42199.0,0.71148]
[1646339031250,0.29582245,42201.0,42199.0,0.71148]
[1646339031445,0.29582245,42201.0,42200.0,0.0475]
[1646339031649,0.2956683,42201.0,42200.0,0.84568945]
[1646339031846,0.29536,42201.0,42200.0,0.79208953]
[1646339032145,0.29536,42201.0,42200.0,0.75896]
[1646339032349,0.29536,42201.0,42200.0,0.78888466]
[1646339032647,0.118522,42202.0,42200.0,0.78888466]
[1646339032847,0.00039798,42203.0,42201.0,0.36091432]
[1646339033046,0.00039798,42203.0,42202.0,0.75893]
[1646339033246,0.00039798,42203.0,42202.0,1.1422196]
[1646339033511,0.00013266,42203.0,42202.0,1.09447588]
[1646339033711,0.0021,42204.0,42202.0,1.23037815]
[1646339033909,0.0021,42204.0,42203.0,0.36439292]
[1646339034111,0.0021,42204.0,42203.0,1.09508285]
[1646339034314,0.0021,42204.0,42203.0,0.78712974]
[1646339036512,0.00151889,42206.0,42205.0,0.0042]
[1646339036709,0.00137926,42206.0,42205.0,0.0042]
[1646339036913,0.00123963,42206.0,42205.0,0.0042]
[1646339037143,0.0011,42206.0,42205.0,0.0042]
[1646339039844,0.0011,42206.0,42205.0,0.0082]
[1646339040244,0.0011,42206.0,42205.0,0.01294687]
[1646339041094,0.0011,42206.0,42205.0,0.00894687]
[1646339041694,0.0011,42206.0,42205.0,0.75629502]
[1646339042194,0.0011,42206.0,42205.0,0.7562946]
[1646339042794,0.0011,42206.0,42205.0,0.72032687]
[1646339043995,0.0011,42206.0,42205.0,0.72432687]
[1646339044652,0.45794798,42206.0,42205.0,0.72432687]
[1646339045049,0.45794798,42206.0,42205.0,0.36465587]
[1646339045449,0.45794798,42206.0,42205.0,0.00895587]
[1646339045450,0.50544798,42206.0,42205.0,0.00895587]
[1646339045647,0.059283,42202.0,42193.0,0.025]
[1646339045846,0.45929172,42201.0,42193.0,0.025]
[1646339046852,0.45929172,42201.0,42190.0,0.00030609]
[1646339047051,0.45929172,42201.0,42190.0,0.00020406]
[1646339047253,0.059276,42197.0,42190.0,0.00010203]
[1646339047450,0.059276,42197.0,42187.0,0.10986381]
[1646339047650,0.059276,42197.0,42188.0,0.2094267]
[1646339047851,0.059276,42197.0,42190.0,0.005]
[1646339048598,0.05966407,42200.0,42190.0,0.005]
[1646339048794,0.05953138,42200.0,42190.0,0.005]
[1646339048992,0.05939869,42200.0,42190.0,0.005]
[1646339049197,0.2254,42203.0,42194.0,0.05275132]
[1646339049394,0.567931,42205.0,42194.0,0.05275132]
[1646339049594,0.567931,42205.0,42199.0,0.10585928]
[1646339050093,0.00017387,42200.0,42199.0,0.10585928]
[1646339050397,0.00052161,42200.0,42199.0,0.10585928]
[1646339050592,0.00034774,42200.0,42199.0,0.10585928]
[1646339050794,0.05926,42204.0,42194.0,0.003]
[1646339051193,0.05926,42204.0,42197.0,0.16044136]
[1646339051393,0.05926,42204.0,42194.0,0.01518958]
[1646339051594,0.05926,42204.0,42195.0,0.01375709]
[1646339051796,0.00034776,42201.0,42196.0,0.0475]
[1646339051996,0.00052164,42201.0,42197.0,0.003]
[1646339052647,0.00034776,42201.0,42197.0,0.003]
[1646339052848,0.05926,42204.0,42197.0,0.003]
[1646339053046,0.118529,42204.0,42197.0,0.003]
[1646339053245,0.118529,42204.0,42194.0,0.11831764]
[1646339053446,0.118529,42204.0,42193.0,0.19096733]
[1646339053647,0.00017388,42201.0,42190.0,0.02513783]
[1646339053846,0.059277,42199.0,42194.0,0.004]
[1646339055248,0.059277,42199.0,42193.0,0.18738171]
[1646339055891,0.059277,42199.0,42193.0,0.004]
[1646339057092,0.059277,42199.0,42192.0,0.20833182]
[1646339057893,0.059277,42199.0,42192.0,0.21233182]
[1646339058293,0.00016237,42200.0,42196.0,0.12884827]
[1646339058496,0.00032474,42200.0,42196.0,0.12884827]
[1646339058712,0.00048711,42200.0,42197.0,0.19268298]
[1646339059095,0.00032474,42200.0,42197.0,0.19268298]
[1646339059293,0.00016237,42200.0,42197.0,0.19268298]
[1646339059495,0.059261,42202.0,42197.0,0.19268298]
[1646339059745,0.059261,42202.0,42196.0,0.14051843]
[1646339059945,0.059261,42202.0,42200.0,0.08672945]
[1646339060146,0.059261,42202.0,42201.0,0.03851258]
[1646339060449,0.059261,42202.0,42201.0,0.02931696]
[1646339061047,0.059261,42202.0,42195.0,0.01449448]
[1646339061248,0.059261,42202.0,42192.0,0.0475]
[1646339061446,0.059261,42202.0,42191.0,0.01183]
[1646339061646,0.059261,42202.0,42190.0,0.02510517]
[1646339061845,0.059261,42202.0,42190.0,0.24026087]
[1646339062045,0.14242552,42199.0,42190.0,0.03784791]
[1646339062251,0.17784973,42197.0,42190.0,0.00031551]
[1646339062448,0.118566,42197.0,42190.0,0.00021034]
[1646339062648,0.118566,42197.0,42190.0,0.00010517]
[1646339062845,0.118566,42197.0,42189.0,0.17596458]
[1646339063244,0.059282,42197.0,42189.0,0.29319497]
[1646339063794,0.059282,42197.0,42190.0,0.00010517]
[1646339064196,0.059282,42197.0,42190.0,0.00031551]
[1646339064595,0.059282,42197.0,42190.0,0.00021034]
[1646339064796,0.118563,42198.0,42197.0,0.240718]
[1646339067946,0.120563,42198.0,42197.0,0.240718]
[1646339069247,0.118563,42198.0,42197.0,0.240718]
[1646339071997,0.118563,42198.0,42197.0,0.242718]
[1646339073198,0.118563,42198.0,42197.0,0.240718]
[1646339073895,0.118563,42198.0,42197.0,0.243718]
[1646339075148,0.118563,42198.0,42197.0,0.240718]
[1646339075647,0.00041448,42200.0,42197.0,0.240718]
[1646339075948,0.00041448,42200.0,42197.0,0.243718]
[1646339076147,0.00027632,42200.0,42197.0,0.243718]
[1646339076346,0.059266,42202.0,42197.0,0.243718]
[1646339077053,0.00012359,42201.0,42197.0,0.243718]
[1646339077347,0.00012359,42201.0,42197.0,0.240718]
[1646339077348,0.05964777,42201.0,42197.0,0.240718]
[1646339077748,0.05952418,42201.0,42197.0,0.240718]
[1646339077949,0.05940059,42201.0,42197.0,0.243718]
[1646339078151,0.059277,42201.0,42197.0,0.243718]
[1646339078412,0.059266,42202.0,42197.0,0.243718]
[1646339078812,0.00024718,42201.0,42197.0,0.243718]
[1646339079012,0.00037077,42201.0,42197.0,0.243718]
[1646339079212,0.00037077,42201.0,42197.0,0.240718]
[1646339079415,0.00012359,42201.0,42197.0,0.240718]
[1646339079611,0.059266,42202.0,42197.0,0.240718]
[1646339080011,0.059266,42202.0,42197.0,0.250718]
[1646339080413,0.00034776,42201.0,42197.0,0.250718]
[1646339080614,0.00052164,42201.0,42197.0,0.250718]
[1646339081013,0.00034776,42201.0,42197.0,0.250718]
[1646339081219,0.00017388,42201.0,42197.0,0.250718]
[1646339081415,0.059266,42202.0,42197.0,0.250718]
[1646339081818,0.00017388,42201.0,42197.0,0.250718]
[1646339082015,0.00052164,42201.0,42197.0,0.250718]
[1646339082454,0.00034776,42201.0,42197.0,0.250718]
[1646339082652,0.00017388,42201.0,42197.0,0.250718]
[1646339082949,0.059266,42202.0,42197.0,0.250718]
[1646339083550,0.00017181,42201.0,42197.0,0.250718]
[1646339083753,0.00051543,42201.0,42197.0,0.250718]
[1646339083951,0.05979043,42201.0,42197.0,0.250718]
[1646339084151,0.05961862,42201.0,42197.0,0.250718]
[1646339084350,0.05944681,42201.0,42197.0,0.250718]
[1646339084550,0.059275,42201.0,42197.0,0.250718]
[1646339085552,0.05941381,42201.0,42197.0,0.250718]
[1646339085751,0.05969143,42201.0,42197.0,0.250718]
[1646339086000,0.05969143,42201.0,42197.0,0.253718]
[1646339086001,0.05941381,42201.0,42197.0,0.253718]
[1646339086199,0.059275,42201.0,42197.0,0.253718]
[1646339087102,0.05941578,42201.0,42197.0,0.253718]
[1646339087300,0.05969734,42201.0,42197.0,0.250718]
[1646339087901,0.05941578,42201.0,42197.0,0.250718]
[1646339088101,0.059275,42201.0,42197.0,0.250718]
[1646339088703,0.05942254,42201.0,42197.0,0.250718]
[1646339088903,0.05957008,42201.0,42197.0,0.250718]
[1646339089105,0.05971762,42201.0,42197.0,0.250718]
[1646339089302,0.05957008,42201.0,42197.0,0.250718]
[1646339089503,0.059275,42201.0,42197.0,0.25061284]
[1646339090349,0.05940202,42201.0,42197.0,0.25061284]
[1646339090545,0.05965606,42201.0,42197.0,0.25061284]
[1646339090946,0.05952904,42201.0,42197.0,0.25061284]
[1646339091146,0.059275,42201.0,42197.0,0.25061284]
[1646339091547,0.059275,42201.0,42189.0,0.20096458]
[1646339091548,0.059275,42201.0,42190.0,6.908e-05]
[1646339091754,0.059275,42201.0,42181.0,0.24624886]
[1646339091755,0.385989,42197.0,42180.0,0.19699909]
[1646339092051,0.385989,42197.0,42173.0,0.0389]
[1646339092052,1.55277034,42196.0,42190.0,6.908e-05]
[1646339092247,1.55277034,42196.0,42190.0,0.00013816]
[1646339092449,0.97368,42195.0,42176.0,0.03684]
[1646339092649,0.97368,42195.0,42176.0,0.19217082]
[1646339092650,1.35756499,42195.0,42176.0,0.19217082]
[1646339092848,1.35756499,42195.0,42176.0,0.18033082]
[1646339093396,0.02368,42187.0,42177.0,0.18526698]
[1646339093599,0.02368,42187.0,42176.0,0.18033082]
[1646339093600,0.059303,42185.0,42176.0,0.18033082]
[1646339093797,0.059303,42185.0,42176.0,0.025]
[1646339093996,0.059303,42185.0,42175.0,0.01184]
[1646339093997,0.45718262,42184.0,42175.0,0.01184]
[1646339094196,0.45718262,42184.0,42172.0,0.006]
[1646339094399,0.118626,42181.0,42172.0,0.006]
[1646339094896,0.118626,42181.0,42172.0,0.20895356]
[1646339095095,0.118626,42181.0,42172.0,0.006]
[1646339095297,0.118626,42181.0,42170.0,0.10309733]
[1646339095496,0.05931123,42180.0,42170.0,0.10309733]
[1646339095696,0.118626,42181.0,42180.0,0.11862246]
[1646339098050,0.118626,42181.0,42180.0,0.12062246]
[1646339099253,0.118626,42181.0,42180.0,0.11862246]
[1646339099455,0.237248,42183.0,42180.0,0.11862246]
[1646339100055,0.237248,42183.0,42180.0,0.12062246]
[1646339100757,0.07113,42187.0,42180.0,0.12062246]
[1646339101001,0.05929,42187.0,42180.0,0.12062246]
[1646339101299,0.05929,42187.0,42180.0,0.11862246]
[1646339102303,0.05929,42187.0,42181.0,0.00011227]
[1646339102702,0.05929,42187.0,42184.0,0.16828671]
[1646339102902,0.059282,42191.0,42181.0,0.45583085]
[1646339103103,0.059282,42191.0,42182.0,0.01191071]
[1646339103302,0.059282,42191.0,42181.0,0.00011227]
[1646339103503,0.059282,42191.0,42188.0,0.28235219]
[1646339103905,0.118563,42196.0,42188.0,0.3432947]
[1646339104102,0.118563,42196.0,42188.0,0.28235219]
[1646339104303,0.059277,42195.0,42188.0,0.28235219]
[1646339104958,0.059277,42195.0,42188.0,0.10590929]
[1646339105558,0.059277,42195.0,42184.0,0.06193362]
[1646339105758,0.059277,42195.0,42184.0,0.0475]
[1646339105759,0.059283,42193.0,42184.0,0.0475]
[1646339105958,0.059283,42190.0,42184.0,0.25412993]
[1646339106157,0.059283,42190.0,42184.0,0.0475]
[1646339106357,0.059283,42190.0,42184.0,0.01184]
[1646339106559,0.059283,42190.0,42183.0,0.006]
[1646339107058,0.059289,42189.0,42183.0,0.006]
[1646339107258,0.059289,42189.0,42182.0,0.10703754]
[1646339107259,0.118583,42188.0,42182.0,0.10703754]
[1646339107659,0.118583,42188.0,42185.0,0.20476481]
[1646339108505,0.118583,42188.0,42182.0,0.10703754]
[1646339109305,0.059291,42189.0,42182.0,0.10703754]
[1646339109505,0.118566,42194.0,42182.0,0.10703754]
[1646339109703,0.118566,42194.0,42188.0,0.18575831]
[1646339109907,0.059278,42195.0,42188.0,0.18575831]
[1646339110307,0.059278,42195.0,42189.0,0.1235423]
[1646339110806,0.059278,42195.0,42182.0,0.004]
[1646339111005,0.059278,42195.0,42183.0,0.71109]
[1646339111206,0.059278,42195.0,42183.0,0.73609]
[1646339111406,0.059278,42195.0,42184.0,0.19019895]
[1646339111806,0.059278,42195.0,42183.0,0.78359]
[1646339112005,0.059278,42195.0,42183.0,0.88709419]
[1646339112252,0.059281,42193.0,42183.0,0.88709419]
[1646339112447,0.118573,42191.0,42183.0,0.83959419]
[1646339112846,0.059283,42191.0,42187.0,0.21349761]
[1646339113047,0.118564,42196.0,42187.0,0.21349761]
[1646339113346,0.4151,42198.0,42190.0,0.11650071]
[1646339113547,0.4151,42198.0,42187.0,0.21349761]
[1646339113548,0.00016252,42196.0,42184.0,0.4536016]
[1646339113749,0.00032504,42196.0,42184.0,0.4536016]
[1646339113949,0.00048756,42196.0,42184.0,0.4536016]
[1646339114148,0.00016252,42196.0,42190.0,0.003]
[1646339114449,0.059275,42196.0,42190.0,0.003]
[1646339114651,0.118566,42194.0,42190.0,0.003]
[1646339115448,0.118566,42194.0,42188.0,0.20200636]
[1646339115649,0.118563,42195.0,42188.0,0.20200636]
[1646339116103,0.118563,42195.0,42188.0,0.20600636]
[1646339116503,0.11824857,42195.0,42188.0,0.20600636]